[Event "ITT 1st Parada Jamundi 2022"]
[Site "Jamundi Valle"]
[Date "2022.12.11"]
[Round "10.14"]
[White "Luligo Bejarano, Luis Angel"]
[Black "Borrero, Alexander"]
[Result "1/2-1/2"]
[ECO "B11"]
[WhiteElo "1675"]
[BlackElo "1988"]
[Annotator "TA"]
[PlyCount "81"]
[EventDate "2022.12.05"]
[EventType "swiss"]
[EventCountry "COL"]
[SourceTitle "playchess.com"]
[Source "ChessBase"]
[SourceQuality "1"]
[TimeControl "5400+30"]

{[%evp 10,81,30,14,20,0,35,27,30,27,43,20,57,0,38,45,38,49,57,45,32,37,38,0,55,15,45,-38,0,-22,-16,-11,0,0,0,0,0,0,37,31,50,44,44,9,38,13,57,22,22,6,22,22,24,24,112,75,80,50,79,80,137,112,104,0,0,0,0,0,0,0,1,0,0,0]} 1. e4 {[%emt 0:00:51]} c6 {[%emt 0:01:24]} 2. Nc3 {[%emt 0:01:15]} d5 {[%emt 0:00:34]} 3. Nf3 {[%emt 0:00:39]} Bg4 {[%emt 0:00:17]} 4. h3 {[%emt 0:00:23]} Bxf3 {[%emt 0:00:05]} 5. Qxf3 {[%emt 0:00:12]} Nf6 {[%emt 0:00:30]} 6. d3 {[%emt 0:10:34]} e5 {[%emt 0:04:16] B11: Caro-Kann: Two Knights Variation.} 7. exd5 {[%emt 0:04:46]} cxd5 {[%emt 0:00:09]} 8. g4 {[%emt 0:06:46][%cal Bg2g4,Bg4g5][%mdl 32] [#]} Nc6 $146 {[%emt 0:06:21] White has an edge.} ({Predecessor:} 8... Bb4 9. Bd2 Nc6 10. Bg2 d4 11. Nb1 O-O 12. O-O Rc8 13. a3 Be7 14. c4 a5 {½-½ (77) Akhmadeev,V (2445)-Fradkin,B (2345) Omsk/Perm 1998}) 9. Bg2 {[%emt 0:01:28]} Bb4 {[%emt 0:01:22]} 10. g5 {[%emt 0:07:34] Inhibits d4.} e4 {[%emt 0:12:34]} 11. Qd1 {[%emt 0:04:02]} (11. Qe2 $14 Nd7 12. O-O) 11... Nd7 {[%emt 0:04:47]} (11... d4 $5 {[%cal Rd4c3]} 12. a3 Bxc3+ 13. bxc3 Nd5 $14) 12. O-O {[%emt 0:01:33]} Bxc3 {[%emt 0:07:01]} 13. bxc3 {[%emt 0:00:11]} O-O {[%emt 0:00:41]} 14. dxe4 {[%emt 0:00:48]} dxe4 {[%emt 0:00:43]} 15. Bxe4 {[%emt 0:00:37]} Re8 {[%emt 0:00:55]} 16. Bd5 {[%emt 0:11:11]} Qe7 {[%emt 0:08:40]} (16... Qc7 $11) 17. Be3 {[%emt 0:20:54] This pair of bishops is nice.} (17. Bf4 {is more complex.} Nb6 18. Bb3 Qe4 19. Qg4) 17... Nde5 {[%emt 0:02:00]} 18. Bxc6 {[%emt 0:03:07]} (18. Bg2 $14) 18... bxc6 {[%emt 0:00:57]} 19. Bf4 {[%emt 0:00:39]} Rad8 {[%emt 0:01:19]} 20. Qe2 {[%emt 0:01:48]} f6 {[%emt 0:03:53]} (20... Rd6 {simplifies} 21. Qxe5 Qxe5 22. Bxe5 Rxe5 23. h4 h6) 21. Bxe5 {[%emt 0:02:15]} fxe5 {[%emt 0:00:05]} 22. Qe3 {[%emt 0:00:23]} Qf7 {[%emt 0:03:14]} 23. Rfd1 {[%emt 0:07:34]} Qf5 {[%emt 0:02:41]} 24. Rd3 {[%emt 0:08:09]} e4 {[%emt 0:00:56]} 25. Rxd8 {[%emt 0:00:31]} Rxd8 $14 {[%emt 0:00:05][%mdl 4096] Endgame KQR-KQR} 26. Re1 {[%emt 0:00:29]} Rf8 {[%emt 0:00:26]} 27. Re2 {[%emt 0:00:41]} Rb8 {[%emt 0:01:01]} (27... Qf4 {simplifies} 28. Qxf4 Rxf4 29. Kg2 Kf7) 28. Qxe4 {[%emt 0:02:46]} (28. Qxa7 Rb1+) 28... Qxg5+ {[%emt 0:00:07]} 29. Kh2 {[%emt 0:00:23] [#] Qe6+ is the strong threat.} (29. Kf1 {seems wilder.} Rf8 30. Qxc6 Qc1+ 31. Re1) 29... Rf8 {[%emt 0:05:43]} 30. Qxc6 {[%emt 0:00:52]} Qf4+ {[%emt 0:00:27]} 31. Kg1 {[%emt 0:00:11]} (31. Kg2 {looks sharper.} Qg5+ 32. Kf1 Qc1+ 33. Re1) 31... h6 {[%emt 0:00:15]} (31... Qc1+ $11 32. Kg2 (32. Kh2 Qf4+ 33. Kg2 Qg5+ 34. Kf1 Qc1+ 35. Re1 Qxc2 $14) 32... Qg5+ 33. Kf1 Qc1+ 34. Kg2 Qg5+ 35. Kf1 Qc1+ 36. Re1 (36. Kg2 Qg5+ $14) 36... Qxc2 37. Qd5+ Kh8) 32. Qe6+ {[%emt 0:00:40]} (32. Qd5+ {feels hotter.} Kh7 33. Kg2 Qf6 34. Qd3+) 32... Kh8 {[%emt 0:00:13]} 33. Qe3 {[%emt 0:00:16] Against Qc1+} Qf5 {[%emt 0:00:32]} 34. c4 {[%emt 0:01:45]} ({Of course not} 34. Qxa7 Qg5+ 35. Kh2 Qf4+ 36. Kg1 Qg5+ 37. Kh2 Qf4+ 38. Kg1 Qg5+ $11) 34... Rb8 {[%emt 0:01:06]} (34... Qg6+ $142 35. Qg3 Qxg3+ 36. fxg3 Rf3) 35. Qe5 {[%emt 0:00:59]} ({Reject} 35. Qxa7 $6 Rb1+ 36. Kg2 Qg5+ 37. Kf3 Qh5+ 38. Ke3 Qe5+ 39. Kf3 Qf5+ 40. Kg2 Qg6+ 41. Kf3 Qh5+ 42. Ke3 Qe5+ 43. Kf3 Qf5+ 44. Kg3 Qg6+ 45. Kf3 Qf6+ 46. Kg2 Qg6+ 47. Kf3 $11) 35... Qg6+ {[%emt 0:01:24]} 36. Qg3 {[%emt 0:00:09]} (36. Kh2 $16 Rb1 37. Qe8+ Kh7 38. Qxg6+ Kxg6 39. Re3) 36... Rb1+ $11 {[%emt 0:05:01] The position is equal.} 37. Kh2 {[%emt 0:00:04]} Qc6 {[%emt 0:00:22][%csl Gc6][%cal Rb1h1] [#]} 38. Qg2 {[%emt 0:01:00] Prevents Rh1+.} Qc7+ {[%emt 0:00:23]} 39. Qg3 {[%emt 0:00:07]} Qc6 {[%emt 0:00:38][%csl Gc6][%cal Rb1h1]} 40. Qg2 {[%emt 0:00:04] Inhibits Rh1+.} Qc7+ {[%emt 0:02:36]} 41. Qg3 {[%emt 0:02:24] Weighted Error Value: White=0.20 (precise) /Black=0.21 (precise)} 1/2-1/2

[Event "ITT 1st Parada Jamundi 2022"]
[Site "Jamundi Valle"]
[Date "2022.12.11"]
[Round "10.15"]
[White "Simancas Maradei, Miguel Alejand"]
[Black "Franco, Jhonier"]
[Result "0-1"]
[ECO "A10"]
[WhiteElo "2027"]
[BlackElo "1900"]
[Annotator "TA"]
[PlyCount "50"]
[EventDate "2022.12.05"]
[EventType "swiss"]
[EventCountry "COL"]
[SourceTitle "playchess.com"]
[Source "ChessBase"]
[SourceQuality "1"]
[TimeControl "5400+30"]

{[%evp 9,50,-15,-21,-12,138,84,99,76,146,95,144,82,140,139,147,141,147,148,244,94,134,-241,-247,-205,-156,-167,0,-29987,-29988,-29988,-29989,-29989,-29990,-29990,-29991,-29996,-29992,-29992,-29988,-29988,-29989,-29995,-29994]} 1. c4 {[%emt 0:01:13]} b5 {[%emt 0:03:25]} 2. e3 {[%emt 0:03:01]} bxc4 {[%emt 0:01:09]} 3. Bxc4 {[%emt 0:00:58]} d5 {[%emt 0:00:17]} 4. Bb3 {[%emt 0:01:24]} Nf6 {[%emt 0:01:19]} 5. Nf3 {[%emt 0:00:10]} e6 {[%emt 0:00:04]} 6. O-O {[%emt 1:26:44] A10: English Opening: Unusual Replies for Black.} g5 {[%emt 1:27:16] [#]} ({Better is} 6... Be7 $11) 7. Nc3 $146 {[%emt 0:00:00]} (7. Nxg5 Nbd7 8. Nc3) (7. Nxg5 $142 Ba6 8. Re1) ({Predecessor:} 7. Nxg5 Rg8 8. Nf3 Bd6 9. d4 Ne4 10. Nc3 Ba6 11. Bc2 Bxf1 12. Qxf1 f5 13. Nb5 {0-1 (36) Simancas Maradei,M (2027)-Franco,J (1900) Palmira 2022}) 7... Rg8 {[%emt 0:00:00]} 8. Qc2 {[%emt 0:00:00] White is better.} Ba6 {[%emt 0:00:00] Against d4} (8... Bb7 $142) 9. Ba4+ {[%emt 0:00:00]} (9. Re1 $142 $1) 9... Nfd7 {[%emt 0:00:00]} (9... Nbd7 $142) 10. Re1 {[%emt 0:00:00]} (10. Qxh7 Rg7 11. Qc2 (11. Qh8 Bxf1 12. Kxf1 c6 $15) 11... Bxf1 12. Kxf1 c6 $11) (10. Rd1 $142 $1) 10... g4 {[%emt 0:00:00] Against d4} ({Black should play} 10... c6) 11. Ne5 $16 {[%emt 0:00:00][%cal Oe3e4]} (11. Qxh7 Rg7 12. Qh5 (12. Bxd7+ $2 Nxd7 13. Qh4 gxf3 $19) 12... gxf3 13. Qxf3 c6 $19) 11... c6 {[%emt 0:00:00] Against e4} 12. Nxc6 {[%emt 0:00:00]} (12. Qxh7 Rg7 13. Qh5 Nxe5 14. Qxe5 Rh7 $11) 12... Nxc6 {[%emt 0:00:00]} 13. Bxc6 {[%emt 0:00:00][%cal Oe3e4]} Bd6 {[%emt 0:00:00]} (13... Rc8 $16 14. Qa4 (14. Qxh7 $2 Rxc6 15. Qxg8 Qh4 $19) 14... Bd3) 14. Qxh7 {[%emt 0:00:00]} (14. Qa4 $1 $18 Bd3 15. Bxa8 Qxa8 16. Ne2) 14... Ke7 {[%emt 0:00:00] [#] And now ...Rh8 would win.} 15. Nxd5+ $2 {[%emt 0:01:02][%mdl 8192]} (15. Qh4+ $1 $16 {is forced if you want to stay better.} Ke8 16. Qxd8+ Rxd8 17. d4) 15... exd5 $19 {[%emt 0:00:00]} 16. Bxd5 {[%emt 0:00:01][%csl Gd5][%cal Rh7f7] [#]} Qf8 {[%emt 0:00:00] White must now prevent ...Nf6. Really sharp!} 17. Qe4+ {[%emt 0:00:11]} (17. g3 Nf6) 17... Kd8 $2 {[%emt 0:00:00]} ({Black should try} 17... Ne5 $19 {Hoping for ...Bd3.} 18. Bxa8 (18. d4 $2 f5 $19) 18... Qxa8 19. Qxa8 Rxa8) 18. Bxa8 $4 {[%emt 0:00:54][%mdl 8192] [#]} (18. Bc4 $11 Bxc4 19. Qxa8+ Ke7 20. Qxf8+ (20. Qxa7 {leads to mate.} Bxh2+ 21. Kxh2 Qh6+ 22. Kg1 Rh8 23. Qa3+ Ke6) (20. Qe4+ Be6 $11) 20... Nxf8 21. b3) 18... Bxh2+ $1 {[%emt 0:00:00][%mdl 576] Decoy. Black mates.} 19. Kxh2 {[%emt 0:00:52]} Qh6+ {[%emt 0:00:00]} 20. Kg3 {[%emt 0:01:31]} Rh8 {[%emt 0:00:00]} 21. Rh1 {[%emt 0:02:03]} Qxh1 {[%emt 0:00:00]} 22. Qf5 {[%emt 0:00:37]} Qh4+ {[%emt 0:00:00][%mdl 64] Deflection} 23. Kf4 {[%emt 0:00:12]} Qxf2+ {[%emt 0:00:00]} 24. Bf3 {[%emt 0:00:13]} gxf3 {[%emt 0:00:00]} 25. gxf3 {[%emt 0:01:07]} Rh4+ {[%emt 0:00:00] Weighted Error Value: White=0.63/Black=0.40} 0-1

[Event "ITT 1st Parada Jamundi 2022"]
[Site "Jamundi Valle"]
[Date "2022.12.11"]
[Round "10.16"]
[White "Chavarro, Jeffry"]
[Black "Renteria, Rolando"]
[Result "1-0"]
[ECO "C41"]
[WhiteElo "2020"]
[BlackElo "2046"]
[Annotator "TA"]
[PlyCount "63"]
[EventDate "2022.12.05"]
[EventType "swiss"]
[EventCountry "COL"]
[SourceTitle "playchess.com"]
[Source "ChessBase"]
[SourceQuality "1"]
[TimeControl "5400+30"]

{[%evp 13,63,35,27,0,15,-12,0,0,11,-2,0,-33,-19,-70,47,0,60,25,25,17,41,39,20,44,29,7,15,33,40,41,33,0,40,-55,-40,-38,-39,-409,-316,-331,-270,-292,-307,-450,-448,-465,-461,-653,-651,-664,-644,-789]} 1. e4 {[%emt 0:00:30]} e5 {[%emt 0:05:35]} 2. Nf3 {[%emt 0:00:06]} d6 {[%emt 0:00:03]} 3. d4 {[%emt 0:00:03]} exd4 {[%emt 0:00:21]} 4. Nxd4 {[%emt 0:03:32]} Nf6 {[%emt 0:00:15]} 5. Nc3 {[%emt 0:00:09]} Be7 {[%emt 0:00:03]} 6. Be2 {[%emt 0:05:19]} O-O {[%emt 0:00:12]} 7. O-O {[%emt 0:00:12]} Re8 {[%emt 0:00:44]} 8. Kh1 {[%emt 0:01:29] C41: Philidor Defence.} Bf8 {[%emt 0:05:06] [#]} 9. Bf3 $146 {[%emt 0:07:25]} (9. Bg5) ({Predecessor:} 9. Bg5 h6 10. Bh4 g5 11. Bg3 Nxe4 12. Nxe4 Rxe4 13. f4 gxf4 14. Bxf4 Nc6 15. Nxc6 bxc6 {½-½ (166) Cori Tello,D (2386)-Demuth,A (2538) Cap d'Agde 2017}) 9... h6 {[%emt 0:03:33]} 10. g4 {[%emt 0:00:52] The position is equal.} Nh7 {[%emt 0:03:45]} 11. Be3 {[%emt 0:13:33]} Bd7 {[%emt 0:02:04]} 12. Qd2 {[%emt 0:09:37]} Nc6 {[%emt 1:14:49]} (12... Ng5 $5 {[%cal Rg5f3]}) 13. Nf5 ({White should try} 13. Be2 $11) 13... Ne5 {[%emt 0:00:00]} (13... g6 $1 $15) 14. Be2 $14 {[%emt 0:00:46]} Ng6 {[%emt 0:00:00]} (14... Nf6 $11) 15. Rg1 {[%emt 0:09:00]} Be7 {[%emt 0:00:00]} 16. f4 {[%emt 0:08:59]} Bc6 {[%emt 0:00:00]} 17. g5 {[%emt 0:05:29] Prevents Bf6.} (17. Qd4 $2 Bf6 18. Qd1 Bxc3 19. bxc3 Rxe4 $19) 17... hxg5 {[%emt 0:00:00]} 18. fxg5 {[%emt 0:00:27]} ({But not} 18. Qd4 $2 Bf6 19. Qc4 Bxc3 $19) 18... Bf8 $1 {[%emt 0:00:00]} 19. Qd4 {[%emt 0:32:32]} Re5 {[%emt 0:00:00]} 20. Raf1 {[%emt 0:00:00] Strongly threatening Bc4.} Qe8 {[%emt 0:00:00][%cal Re5e4]} 21. Rg4 {[%emt 0:00:00]} Qd7 {[%emt 0:00:00] Inhibits h4.} 22. Bf3 {[%emt 0:00:00]} (22. Ng3 {looks sharper.} Re7 23. Nd5 Bxd5 24. Qxd5 Ne5 25. Nf5) 22... Rae8 {[%emt 0:00:00][%cal Od6d5]} 23. h4 {[%emt 0:00:00]} (23. Qxa7 $2 b6 24. Bxb6 cxb6 25. Qxd7 Bxd7 $19) (23. Rg3 $14) 23... Rxf5 {[%emt 0:00:00]} (23... d5 {seems wilder.} 24. Rg3 dxe4 25. Qxd7 Bxd7 26. Bg4 Be6) 24. exf5 {[%emt 0:00:00]} Qxf5 {[%emt 0:00:00]} 25. Ne4 $2 {[%emt 0:00:00][%mdl 8192] Now White is beyond hope.} (25. Kg2 $15 Ne5 26. Bxc6 Qxg4+ 27. Qxg4 Nxg4 28. Bxe8 Nxe3+ 29. Kg1 Nxf1 30. Kxf1) 25... Qxg4 {[%emt 0:00:00][%mdl 64] [#] Deflection} 26. Bxg4 {[%emt 0:00:00] Threatens to win with Bf3.} Rxe4 {[%emt 0:00:00]} 27. Qxe4 {[%emt 0:00:00]} Bxe4+ {[%emt 0:00:00]} 28. Kg1 {[%emt 0:00:00]} (28. Bf3 {was worth a try.} Bxf3+ 29. Rxf3) 28... Nxh4 $19 {[%emt 0:00:00] Black is clearly winning.} 29. Rf4 {[%emt 0:00:00]} d5 {[%emt 0:01:57]} (29... Bxc2 $2 {too greedy.} 30. Rc4 Bf5 31. Bh5 $19) (29... Nxg5 $2 {loses.} 30. Bc8 Ng6 31. Rxe4 Nxe4 32. Bxb7) 30. Bh5 {[%emt 0:00:00]} (30. Bc8 $142 Nxg5 31. Kf1) 30... Nf5 {[%emt 0:00:39]} 31. Bxa7 {[%emt 0:00:00]} Bd6 {[%emt 0:00:27] Inhibits g6.} 32. Rf1 {[%emt 0:00:01][%mdl 32768] Weighted Error Value: White=0.51/Black=0.18 (very precise) . Loss on time!?} 1-0

[Event "ITT 1st Parada Jamundi 2022"]
[Site "Jamundi Valle"]
[Date "2022.12.11"]
[Round "10.17"]
[White "Navia Alvarez, Edwin Adrian"]
[Black "Garces, Javier"]
[Result "1/2-1/2"]
[ECO "B60"]
[WhiteElo "2023"]
[BlackElo "1863"]
[Annotator "TA"]
[PlyCount "109"]
[EventDate "2022.12.05"]
[EventType "swiss"]
[EventCountry "COL"]
[SourceTitle "playchess.com"]
[Source "ChessBase"]
[SourceQuality "1"]
[TimeControl "5400+30"]

{[%evp 12,109,57,70,65,62,82,52,58,39,56,43,39,48,141,147,144,136,150,96,96,93,115,102,101,77,164,170,159,172,204,188,197,197,216,169,325,306,327,323,348,360,365,370,375,372,413,215,237,228,220,173,150,147,248,91,93,-22,-22,-22,-22,-18,-18,-20,-19,-29,-27,-127,-30,-37,-36,-60,-41,-89,0,0,0,-12190,0,0,0,-29964,-29962,-29964,-29965,-29968,-29970,-29970,0,-29963,-29964,-29946,0,0,0,0,0,0,0,0]} 1. e4 {[%emt 0:00:38]} c5 {[%emt 0:00:09]} 2. Nf3 {[%emt 0:00:09]} d6 {[%emt 0:00:10]} 3. d4 {[%emt 0:00:07]} cxd4 {[%emt 0:00:09]} 4. Nxd4 {[%emt 0:00:03]} Nf6 {[%emt 0:00:11]} 5. Nc3 {[%emt 0:00:06]} Nc6 {[%emt 0:00:13]} 6. Bg5 {[%emt 0:00:46]} Qa5 {[%emt 0:02:09]} (6... e6) 7. Bb5 {[%emt 0:08:03]} Bd7 {[%emt 0:00:33] Strongly threatening ...Nxd4. B60: Sicilian: Richter-Rauzer: Unusual Black 6th moves and 6...Bd7 without 7 Qd2.} 8. Nb3 {[%emt 0:00:17]} Qd8 {[%emt 0:01:03]} 9. O-O {[%emt 0:06:08]} e6 {[%emt 0:01:12] White is slightly better.} 10. Kh1 {[%emt 0:00:29] [#]} Rc8 $146 {[%emt 0:01:58]} ({Predecessor:} 10... a6 11. Bd3 Be7 12. a4 Rc8 13. f4 Qc7 14. Qe2 Nb4 15. Rad1 Nxd3 16. Rxd3 b5 17. axb5 axb5 {1-0 (31) Hrbolka,L-Vohnout,P Czech Republic 1996}) 11. f4 {[%emt 0:05:33]} Be7 {[%emt 0:01:28]} 12. Bxf6 {[%emt 0:05:52]} gxf6 {[%emt 0:01:51]} (12... Bxf6 $14 13. Qxd6 Bxc3 14. bxc3 Qe7) 13. Qh5 $16 {[%emt 0:00:05]} a6 {[%emt 0:03:21]} 14. Bd3 {[%emt 0:01:56]} Nb4 {[%emt 0:02:07]} 15. Rae1 {[%emt 0:03:40]} (15. Rad1 $142) 15... Nxd3 {[%emt 0:01:38]} 16. cxd3 {[%emt 0:00:02]} b5 {[%emt 0:11:10]} 17. f5 {[%emt 0:06:42]} e5 {[%emt 0:02:54]} 18. d4 {[%emt 0:00:38]} b4 {[%emt 0:00:35]} (18... Bc6 $16) 19. Nd5 $18 {[%emt 0:00:24]} Bc6 {[%emt 0:00:10]} 20. Nxb4 {[%emt 0:01:13] White has more active pieces. Pair of Knights!} Bb5 {[%emt 0:00:55]} 21. Rg1 {[%emt 0:25:44]} a5 {[%emt 0:00:08]} 22. Nd5 {[%emt 0:00:02] And now dxe5 would win.} a4 {[%emt 0:00:08]} 23. Nc1 {[%emt 0:03:03]} exd4 $2 {[%emt 0:00:19]} (23... Bc4 24. dxe5 fxe5) 24. Rd1 {[%emt 0:00:33]} Rc2 {[%emt 0:01:04]} 25. b3 {[%emt 0:02:02]} ({Don't take} 25. Rxd4 Qd7 26. Nd3 Qa7) 25... axb3 26. axb3 {[%emt 0:00:01]} ({Weaker is} 26. Nxb3 Be2 27. Qh6 Bxd1 $18) 26... h6 {[%emt 0:11:28]} 27. Rxd4 {[%emt 0:03:13]} Qc8 {[%emt 0:00:17]} 28. Qd1 {[%emt 0:01:28]} Qc5 {[%emt 0:01:43][%cal Oc2c1]} 29. Rd2 {[%emt 0:00:08]} (29. Rb4 $142 {[%cal Ob4b5] Hoping for Rxb5!} Bd8 30. Rxb5 $1 {[%mdl 512]} Rxc1 31. Qxc1 Qxb5 32. b4) 29... Rxd2 {[%emt 0:00:53]} 30. Qxd2 {[%emt 0:00:01]} Bc6 {[%emt 0:01:08]} 31. Rd1 {[%emt 0:03:24]} Bxd5 {[%emt 0:00:26]} 32. exd5 {[%emt 0:00:15]} Kd7 {[%emt 0:01:10]} (32... Bd8 $16 {was called for.} 33. b4 Qc4 34. Re1+ Kf8) 33. Ne2 $2 {[%emt 0:01:50]} (33. Re1 $18 {has better winning chances.}) 33... Bd8 $16 {[%emt 0:00:36]} 34. Nc3 {[%emt 0:03:00]} (34. Nd4 $16) 34... Ba5 $11 {[%emt 0:00:30]} 35. Na4 {[%emt 0:05:02]} Bxd2 {[%emt 0:54:14]} 36. Nxc5+ {[%emt 0:15:53]} dxc5 {[%emt 0:00:00][%cal Bd6c5,Bc5c4][%mdl 32]} 37. Rxd2 {[%emt 0:00:00][%mdl 4096] Endgame KR-KR} Rb8 {[%emt 0:00:00] ...c4 is the strong threat.} 38. Kg1 {[%emt 0:00:00]} Rxb3 {[%emt 0:00:00]} 39. d6 {[%emt 0:00:00]} (39. Ra2 $1 $11 {remains equal.}) 39... Rb4 {[%emt 0:00:00]} ({Black should try} 39... c4 $17 40. Rd4 c3) 40. Rd5 $1 {[%emt 0:00:00]} c4 {[%emt 0:00:00]} 41. Kf2 {[%emt 0:00:00]} Rb6 {[%emt 0:00:00]} (41... Rb2+ {seems wilder.} 42. Kf3 c3 43. Rc5 Rc2) 42. Ke3 {[%emt 0:00:00] Inhibits c3.} (42. Rc5 $15) 42... Rxd6 $2 {[%emt 0:00:00][%mdl 8192]} (42... Rb2 $17 43. g4 Rxh2) 43. Rxd6+ $19 {[%emt 0:00:00]} Kxd6 $17 {[%emt 0:00:00] KP-KP} 44. Kd4 {[%emt 0:00:00][%cal Oh2h3]} c3 $1 {[%emt 0:00:00]} 45. Kxc3 $11 {[%emt 0:00:00] K3P-K3P} Ke5 {[%emt 0:00:00][%cal Oh6h5]} 46. Kd3 $2 {[%emt 0:00:00][%mdl 8192] Prevents h5.} ({Avoid the trap} 46. g4 $2 Kf4 47. Kd4 Kxg4 $19) (46. Kc4 $11) 46... Kxf5 {[%emt 0:00:00] K3P-KPP} 47. Ke3 {[%emt 0:00:00] [#]} Kg4 $1 {[%emt 0:00:00]} 48. Ke4 {[%emt 0:00:00]} h5 {[%emt 0:00:00]} 49. Ke3 {[%emt 0:00:00]} h4 $2 {[%emt 0:00:00]} (49... f5 50. Ke2 f4 51. Ke1 f3 52. Kf2 fxg2 53. Kxg2 Kf4 54. Kf2 Ke4 55. Ke2 h4 56. Kf2 f6 57. Ke2 f5 58. Kf2 Kd3 59. Kf3 h3 60. Kf2 Kd2 61. Kf3 Ke1 62. Ke3 Kf1 63. Kf3 Kg1 64. Kg3 f4+ 65. Kf3 Kh1 66. Kg4 Kxh2 67. Kf3 Kg1 68. Kxf4 h2 69. Ke5 h1=Q 70. Kd6 Kf2 71. Kc5 Qe4 72. Kb5 Ke3 73. Kb6 Qe6+ 74. Kc5 Kd3 75. Kb5 Kd4 76. Ka4 Qb6 77. Ka3 Kc3 78. Ka4 Qb4#) 50. Ke4 $2 {[%emt 0:02:03][%mdl 8192] [#]} (50. Kf2 $11) 50... f5+ $1 {[%emt 0:00:00]} 51. Ke3 {[%emt 0:00:02]} f6 $2 {[%emt 0:00:00]} (51... f4+ {mates} 52. Kf2 f6 53. h3+ Kg5 54. Ke2 Kg6 55. Kf2 f5 56. Kf3 Kg5 57. Ke2 Kf6 58. Kf2 Ke6 59. Ke2 Kd5 60. Kf3 Ke5 61. Ke2 Ke4 62. Kf2 f3 63. gxf3+ Kf4 64. Kg2 Ke3 65. f4 Ke4 66. Kg1 Kf3 67. Kf1 Kg3 68. Ke2 Kxh3 69. Kf3 Kh2 70. Kf2 h3 71. Kf1 Kg3 72. Kg1 Kxf4 73. Kf2 Kg4 74. Kf1 Kg3 75. Ke2 h2 76. Kd3 h1=Q 77. Kd4 f4 78. Kd3 f3 79. Kd4 f2 80. Ke5 f1=Q 81. Kd6 Qf6+ 82. Kc5 Qhc6+ 83. Kb4 Qfc3#) 52. Ke2 $1 {[%emt 0:01:54] The position is equal.} f4 {[%emt 0:00:00][%cal Of4f3] ( -> ...f3+!)} 53. Kf2 {[%emt 0:00:14] Against f3} h3 {[%emt 0:00:00]} 54. gxh3+ {[%emt 0:00:13]} Kxh3 {[%emt 0:00:00]} 55. Kf3 {[%emt 0:00:03] Quite a comeback for White.   Weighted Error Value: White=0.48/Black=0.36} 1/2-1/2

[Event "ITT 1st Parada Jamundi 2022"]
[Site "Jamundi Valle"]
[Date "2022.12.11"]
[Round "10.18"]
[White "Cortes Castro, Jhonny"]
[Black "Castro Castro, Joaquin"]
[Result "0-1"]
[ECO "B21"]
[WhiteElo "1954"]
[BlackElo "1797"]
[Annotator "TA"]
[PlyCount "40"]
[EventDate "2022.12.05"]
[EventType "swiss"]
[EventCountry "COL"]
[SourceTitle "playchess.com"]
[Source "ChessBase"]
[SourceQuality "1"]
[TimeControl "5400+30"]

{[%evp 9,40,-46,-52,-79,-60,-64,-60,-100,-20,-69,-41,-44,-41,-40,-41,-64,-41,-62,-52,-97,-21,-27,-30,-35,-46,-101,-90,-103,-85,-93,-77,-104,-75]} 1. e4 {[%emt 0:09:58][%cal Be2e4,Be4e5][%mdl 32]} c5 {[%emt 0:00:05]} 2. f4 {[%emt 0:00:00]} d5 {[%emt 0:01:11]} 3. e5 {[%emt 0:00:15]} Nc6 {[%emt 0:00:30]} 4. h3 {[%emt 0:00:11]} Bf5 {[%emt 0:00:30]} 5. Nf3 {[%emt 0:00:30]} e6 {[%emt 0:00:30]} 6. d3 {[%emt 0:00:30] [#] B21: Sicilian: 2 f4 and Morra Gambit.} f6 $146 {[%emt 0:00:30]} (6... Be7 $5 {[%cal Re7h4]} 7. g3 h5 $11) ({Predecessor:} 6... h6 7. g4 Bh7 8. Bg2 Be7 9. c3 d4 10. c4 Qc7 11. O-O O-O-O 12. Na3 a6 {0-1 (39) Antonio,J (2277)-Koutlas,N (2337) Chess.com INT 2021}) 7. exf6 {[%emt 0:00:30]} Nxf6 {[%emt 0:00:30][%cal Oc5c4]} 8. Qe2 {[%emt 0:00:30] Against c4. Black is slightly better.} Qd6 {[%emt 0:00:30]} (8... h5 $17 {[%cal Oc5c4]} 9. Ng5 Qb6) 9. Nc3 {[%emt 0:00:30] Inhibits c4.} (9. g4 $11 Bg6 10. Bg2) 9... Nd4 {[%emt 0:00:30]} 10. Qf2 {[%emt 0:00:30]} Nxf3+ {[%emt 0:00:30]} 11. Qxf3 {[%emt 0:00:30]} h5 {[%emt 0:00:30] Prevents g4.} 12. g3 {[%emt 0:00:30]} O-O-O {[%emt 0:00:30][%cal Oc5c4]} (12... Qb6 $5 {[%cal Rc5c4]}) 13. Bd2 {[%emt 0:00:30]} Qb6 {[%emt 0:00:30]} 14. O-O-O {[%emt 0:00:30] [#]} Bd6 {[%emt 0:00:30]} (14... d4 $1 $17 {[%cal Rd4c3]} 15. Nb1 (15. Ne4 c4 $17) 15... Qa6) 15. Bg2 $11 {[%emt 0:00:30]} Kb8 {[%emt 0:00:30]} 16. Rhe1 {[%emt 0:00:30]} Rc8 {[%emt 0:00:30]} 17. Re2 {[%emt 0:00:30]} ({White should play} 17. Kb1 $15) 17... c4 {[%emt 0:00:30] And now ...cxd3 would win. Black is better.} 18. d4 {[%emt 0:00:30]} Qa6 {[%emt 0:00:30] Black is much more active.} (18... Qxd4 $2 19. Be3 $18) 19. Rde1 {[%emt 0:00:30]} Rhe8 {[%emt 0:00:30]} 20. a3 {[%emt 0:00:30]} Bf8 {[%emt 0:00:30] Weighted Error Value: White=0.21 (precise) /Black=0.21 (precise)} 0-1